[Event "Queens Festival Final Team 2022"]
[Site "Tornelo"]
[Date "2022.06.26"]
[Round "8.5"]
[White "Perez, Dalila"]
[Black "Agajanova, Meryem"]
[Result "0-1"]
[ECO "E05"]
[WhiteElo "1799"]
[BlackElo "1783"]
[Annotator "NA RC"]
[PlyCount "78"]
[EventDate "2022.06.24"]
[EventType "team-tourn"]
[EventCountry "NET"]
[SourceTitle "playchess.com"]
[Source "ChessBase"]
[SourceQuality "1"]
[WhiteTeam "Paraguay"]
[BlackTeam "Turkmenistan"]
[WhiteTeamCountry "PAR"]
[BlackTeamCountry "TKM"]
[TimeControl "180+2"]

1. d4 {[%emt 0:00:02]} d5 {[%emt 0:00:05]} 2. Nf3 {[%emt 0:00:03]} Nf6 {[%emt 0:00:01]} 3. c4 {[%emt 0:00:02]} e6 {[%emt 0:00:02]} 4. g3 {[%emt 0:00:01]} Be7 {[%emt 0:00:02]} 5. Bg2 {[%emt 0:00:01]} O-O {[%emt 0:00:01]} 6. O-O {[%emt 0:00:01]} dxc4 {[%emt 0:00:01]} 7. Ne5 {[%emt 0:00:03]} Nc6 {[%emt 0:00:02]} 8. Nxc6 {[%emt 0:00:04]} bxc6 {[%emt 0:00:01]} 9. Bxc6 {[%emt 0:00:01]} Rb8 {[%emt 0:00:01]} 10. Qc2 {[%emt 0:00:04]} Bb7 {[%emt 0:00:02]} 11. Qxc4 {[%emt 0:00:04]} Bxc6 {[%emt 0:00:04]} 12. Qxc6 {[%emt 0:00:02]} Qxd4 {[%emt 0:00:03]} 13. Qxc7 {[%emt 0:00:06]} Bd6 {[%emt 0:00:03]} 14. Qc3 {[%emt 0:00:06]} Bc5 {[%emt 0:00:40]} 15. Bf4 {[%emt 0:00:43]} Rxb2 {[%emt 0:00:14]} 16. e3 {[%emt 0:00:21]} Qxc3 {[%emt 0:00:05]} 17. Nxc3 {[%emt 0:00:00]} Bb4 {[%emt 0:00:27]} 18. Na4 {[%emt 0:00:13]} Rc2 {[%emt 0:00:07]} 19. a3 {[%emt 0:00:10]} Ba5 {[%emt 0:00:08]} 20. Bd6 {[%emt 0:00:09]} Rfc8 {[%emt 0:00:02]} 21. Rab1 {[%emt 0:00:06]} Ne4 {[%emt 0:00:10]} 22. Bb4 {[%emt 0:00:20]} Bxb4 {[%emt 0:00:39]} 23. Rxb4 {[%emt 0:00:02]} f5 {[%emt 0:00:03]} 24. Nb2 {[%emt 0:00:06]} R8c3 {[%emt 0:00:10]} 25. a4 {[%emt 0:00:05]} Ra3 {[%emt 0:00:08]} 26. Nc4 {[%emt 0:00:10]} Raa2 {[%emt 0:00:03]} 27. Ne5 {[%emt 0:00:06]} h6 {[%emt 0:00:10]} 28. Nd3 {[%emt 0:00:19]} Rd2 {[%emt 0:00:03]} 29. Rd4 {[%emt 0:00:05]} e5 {[%emt 0:00:08]} 30. Nxe5 {[%emt 0:00:04]} Rxf2 {[%emt 0:00:04]} 31. Rxf2 {[%emt 0:00:07]} Nxf2 {[%emt 0:00:01]} 32. Rd8+ {[%emt 0:00:07]} Kh7 {[%emt 0:00:02]} 33. Rd7 {[%emt 0:00:05]} Nh3+ {[%emt 0:00:02]} 34. Kf1 {[%emt 0:00:02]} Rxa4 {[%emt 0:00:02]} 35. Kg2 {[%emt 0:00:02]} Ng5 {[%emt 0:00:02]} 36. Nc6 {[%emt 0:00:04]} Ra2+ {[%emt 0:00:01]} 37. Kf1 {[%emt 0:00:02]} a5 {[%emt 0:00:02]} 38. Nd4 {[%emt 0:00:04]} Kg6 {[%emt 0:00:03]} 39. h4 {[%emt 0:00:04]} Ne4 {[%emt 0:00:02]} 0-1

[Event "Queens Festival Final Team 2022"]
[Site "Tornelo"]
[Date "2022.06.26"]
[Round "8.6"]
[White "Song, Yuxin"]
[Black "khezrian, Neda"]
[Result "1-0"]
[ECO "C78"]
[WhiteElo "2317"]
[BlackElo "1056"]
[Annotator "TA"]
[PlyCount "41"]
[EventDate "2022.06.24"]
[EventType "team-tourn"]
[EventCountry "NET"]
[SourceTitle "playchess.com"]
[Source "ChessBase"]
[SourceQuality "1"]
[WhiteTeam "China"]
[BlackTeam "Iran"]
[WhiteTeamCountry "CHN"]
[BlackTeamCountry "IRI"]
[TimeControl "180+2"]

{[%evp 11,41,21,71,69,100,89,102,88,89,91,108,88,89,79,203,193,193,164,262,239,254,199,299,295,339,325,803,562,534,544,531,527]} 1. e4 {[%emt 0:00:02]} e5 {[%emt 0:00:04]} 2. Nf3 {[%emt 0:00:02]} Nc6 {[%emt 0:00:03]} 3. Bb5 {[%emt 0:00:01]} a6 {[%emt 0:00:03]} 4. Ba4 {[%emt 0:00:01]} Nf6 {[%emt 0:00:07]} 5. O-O {[%emt 0:00:02]} Bc5 {[%emt 0:00:09]} 6. c3 {[%emt 0:00:01][%cal Bc2c3,Bc3d4,Bd4d5,Bd5c6][%mdl 32]} d6 {[%emt 0:00:05]} (6... O-O $11 {remains equal.}) 7. d4 $16 {[%emt 0:00:02] C78: Ruy Lopez: Archangelsk and Möller Defences.} exd4 {[%emt 0:00:04]} 8. cxd4 {[%emt 0:00:02]} Ba7 {[%emt 0:00:01]} 9. d5 {[%emt 0:00:02] White is better.} b5 {[%emt 0:00:17]} 10. dxc6 {[%emt 0:00:08] [#] Hoping for Bc2.} bxa4 {[%emt 0:00:02]} 11. Nc3 {[%emt 0:00:02]} O-O {[%emt 0:00:05]} 12. Bg5 $36 {[%emt 0:00:03][%mdl 2048] [#] White is on the roll. White is more active.} Bg4 $146 {[%emt 0:00:27] [#]} (12... h6 $16 {keeps fighting.} 13. Bxf6 Qxf6) ({Predecessor:} 12... Be6 13. Qxa4 Re8 14. e5 h6 15. Bxf6 gxf6 16. exd6 cxd6 17. Qf4 Kh7 18. Rad1 Bb8 19. Nd5 Bxd5 20. Rxd5 Rg8 21. Qe4+ Rg6 22. Nh4 {1-0 (22) Picos Nebril,J-Kato,T ICCF email 2007}) 13. Nd5 $1 $18 {[%emt 0:00:02]} (13. Qxa4 $6 Bxf3 14. gxf3 h6 $14) ({Weaker is} 13. Nxa4 Rb8 $14) 13... Re8 {[%emt 0:00:20]} 14. h3 {[%emt 0:00:07]} Bh5 {[%emt 0:00:05]} (14... Bxf3 $142 15. Qxf3 (15. gxf3 Qc8 $11) 15... Bd4) 15. Bxf6 {[%emt 0:00:04]} ({Resist} 15. Qxa4 $6 a5 16. Qc4 Kh8 $18) 15... gxf6 {[%emt 0:00:03]} 16. Re1 {[%emt 0:00:07]} Bg6 {[%emt 0:00:37]} (16... Kg7 $142 17. Qxa4 Bxf3) 17. Qxa4 {[%emt 0:00:09]} Kh8 {[%emt 0:00:35]} 18. Rad1 {[%emt 0:00:02]} f5 $2 {[%emt 0:00:23]} (18... a5 19. Qc4 Kg7) 19. Qc4 {[%emt 0:00:02] White is clearly winning.} fxe4 {[%emt 0:00:03]} 20. Qc3+ {[%emt 0:00:01]} Kg8 {[%emt 0:00:04]} 21. Nf6+ {[%emt 0:00:02] White took control after the opening.  Weighted Error Value: White=0.34/Black=0.44} 1-0

[Event "Queens Festival Final Team 2022"]
[Site "Tornelo"]
[Date "2022.06.26"]
[Round "8.6"]
[White "Masoumi, Sahar"]
[Black "Hong, Xing"]
[Result "1-0"]
[ECO "A59"]
[WhiteElo "2004"]
[BlackElo "1999"]
[Annotator "NA RC"]
[PlyCount "83"]
[EventDate "2022.06.24"]
[EventType "team-tourn"]
[EventCountry "NET"]
[SourceTitle "playchess.com"]
[Source "ChessBase"]
[SourceQuality "1"]
[WhiteTeam "Iran"]
[BlackTeam "China"]
[WhiteTeamCountry "IRI"]
[BlackTeamCountry "CHN"]
[TimeControl "180+2"]

1. d4 {[%emt 0:00:02]} Nf6 {[%emt 0:00:04]} 2. c4 {[%emt 0:00:03]} c5 {[%emt 0:00:01]} 3. d5 {[%emt 0:00:01]} b5 {[%emt 0:00:01]} 4. cxb5 {[%emt 0:00:02]} a6 {[%emt 0:00:01]} 5. bxa6 {[%emt 0:00:01]} Bxa6 {[%emt 0:00:02]} 6. Nc3 {[%emt 0:00:01]} d6 {[%emt 0:00:01]} 7. e4 {[%emt 0:00:01]} Bxf1 {[%emt 0:00:01]} 8. Kxf1 {[%emt 0:00:01]} g6 {[%emt 0:00:01]} 9. Nf3 {[%emt 0:00:01]} Bg7 {[%emt 0:00:01]} 10. g3 {[%emt 0:00:01]} O-O {[%emt 0:00:01]} 11. Kg2 {[%emt 0:00:01]} Nbd7 {[%emt 0:00:01]} 12. a4 {[%emt 0:00:04]} Ra6 {[%emt 0:00:10]} 13. Qc2 {[%emt 0:00:05]} Qa8 {[%emt 0:00:04]} 14. Re1 {[%emt 0:00:13]} e6 {[%emt 0:00:11]} 15. Nb5 {[%emt 0:00:06]} Qb7 {[%emt 0:00:05]} 16. dxe6 {[%emt 0:00:13]} fxe6 {[%emt 0:00:01]} 17. Bf4 {[%emt 0:00:05]} d5 {[%emt 0:00:09]} 18. Nd6 {[%emt 0:00:25]} Qa8 {[%emt 0:00:21]} 19. Ng5 {[%emt 0:00:13]} e5 {[%emt 0:00:11]} 20. Bxe5 {[%emt 0:00:08]} Nxe5 {[%emt 0:00:03]} 21. Nb5 {[%emt 0:00:14]} Qc6 {[%emt 0:00:15]} 22. f4 {[%emt 0:00:05]} Nc4 {[%emt 0:00:29]} 23. Kg1 {[%emt 0:00:19]} h6 {[%emt 0:00:04]} 24. exd5 {[%emt 0:00:10]} Qxd5 {[%emt 0:00:08]} 25. Rad1 {[%emt 0:00:02]} Qb7 {[%emt 0:00:27]} 26. Qxc4+ {[%emt 0:00:03]} Kh8 {[%emt 0:00:01]} 27. Ne6 {[%emt 0:00:04]} Rfa8 {[%emt 0:00:07]} 28. Nxc5 {[%emt 0:00:06]} Qc6 {[%emt 0:00:05]} 29. Re6 {[%emt 0:00:04]} Qc8 {[%emt 0:00:08]} 30. Nd6 {[%emt 0:00:10]} Rxd6 {[%emt 0:00:19]} 31. Rexd6 {[%emt 0:00:02]} Qg4 {[%emt 0:00:04]} 32. Rd8+ {[%emt 0:00:11]} Rxd8 {[%emt 0:00:02]} 33. Rxd8+ {[%emt 0:00:02]} Kh7 {[%emt 0:00:01]} 34. Ne4 {[%emt 0:00:06]} h5 {[%emt 0:00:18]} 35. Nxf6+ {[%emt 0:00:12]} Bxf6 {[%emt 0:00:01]} 36. Qf7+ {[%emt 0:00:02]} Bg7 {[%emt 0:00:01]} 37. Rd7 {[%emt 0:00:03]} Qxd7 {[%emt 0:00:06]} 38. Qxd7 {[%emt 0:00:01]} Kh6 {[%emt 0:00:00]} 39. a5 {[%emt 0:00:01]} Bf6 {[%emt 0:00:01]} 40. a6 {[%emt 0:00:02]} Bxb2 {[%emt 0:00:01]} 41. a7 {[%emt 0:00:01]} Bd4+ {[%emt 0:00:01]} 42. Qxd4 {[%emt 0:00:02]} 1-0

[Event "Queens Festival Final Team 2022"]
[Site "Tornelo"]
[Date "2022.06.26"]
[Round "8.6"]
[White "Cui, Wen"]
[Black "Davari, Sara"]
[Result "1-0"]
[ECO "C47"]
[WhiteElo "1718"]
[BlackElo "1674"]
[Annotator "NA RC"]
[PlyCount "107"]
[EventDate "2022.06.24"]
[EventType "team-tourn"]
[EventCountry "NET"]
[SourceTitle "playchess.com"]
[Source "ChessBase"]
[SourceQuality "1"]
[WhiteTeam "China"]
[BlackTeam "Iran"]
[WhiteTeamCountry "CHN"]
[BlackTeamCountry "IRI"]
[TimeControl "180+2"]

1. e4 {[%emt 0:00:02]} e5 {[%emt 0:00:09]} 2. Nf3 {[%emt 0:00:03]} Nf6 {[%emt 0:00:03]} 3. Nc3 {[%emt 0:00:02]} Nc6 {[%emt 0:00:03]} 4. d4 {[%emt 0:00:02]} exd4 {[%emt 0:00:05]} 5. Nxd4 {[%emt 0:00:02]} Bb4 {[%emt 0:00:03]} 6. Nxc6 {[%emt 0:00:01]} bxc6 {[%emt 0:00:02]} 7. Bd3 {[%emt 0:00:02]} O-O {[%emt 0:00:02]} 8. O-O {[%emt 0:00:02]} d5 {[%emt 0:00:02]} 9. exd5 {[%emt 0:00:02]} Bg4 {[%emt 0:00:01]} 10. Be2 {[%emt 0:00:30]} Bxe2 {[%emt 0:00:07]} 11. Nxe2 {[%emt 0:00:03]} cxd5 {[%emt 0:00:02]} 12. c3 {[%emt 0:00:05]} Bd6 {[%emt 0:00:03]} 13. Bg5 {[%emt 0:00:02]} c6 {[%emt 0:00:02]} 14. h3 {[%emt 0:00:04]} h6 {[%emt 0:00:10]} 15. Bh4 {[%emt 0:00:02]} Be7 {[%emt 0:00:02]} 16. Nd4 {[%emt 0:00:08]} Qd7 {[%emt 0:00:02]} 17. Qf3 {[%emt 0:00:03]} Ne4 {[%emt 0:00:21]} 18. Bxe7 {[%emt 0:00:07]} Qxe7 {[%emt 0:00:02]} 19. Nxc6 {[%emt 0:00:06]} Qd6 {[%emt 0:00:28]} 20. Nb4 {[%emt 0:00:12]} a5 {[%emt 0:00:21]} 21. Nc2 {[%emt 0:00:10]} Nd2 {[%emt 0:00:03]} 22. Qd3 {[%emt 0:00:04]} Nxf1 {[%emt 0:00:02]} 23. Rxf1 {[%emt 0:00:04]} Rab8 {[%emt 0:00:05]} 24. b3 {[%emt 0:00:03]} Rfc8 {[%emt 0:00:08]} 25. Ne3 {[%emt 0:00:03]} Rd8 {[%emt 0:00:14]} 26. Nf5 {[%emt 0:00:08]} Qe6 {[%emt 0:00:06]} 27. Nd4 {[%emt 0:00:06]} Qb6 {[%emt 0:00:06]} 28. Qg3 {[%emt 0:00:05]} Rbc8 {[%emt 0:00:13]} 29. Re1 {[%emt 0:00:06]} Re8 {[%emt 0:00:07]} 30. Rd1 {[%emt 0:00:16]} Qc7 {[%emt 0:00:08]} 31. Qg4 {[%emt 0:00:24]} Qxc3 {[%emt 0:00:14]} 32. Nf5 {[%emt 0:00:04]} Qf6 {[%emt 0:00:03]} 33. Rxd5 {[%emt 0:00:07]} Rcd8 {[%emt 0:00:05]} 34. Rxa5 {[%emt 0:00:09]} Kh7 {[%emt 0:00:11]} 35. Ne3 {[%emt 0:00:13]} Qg6 {[%emt 0:00:06]} 36. Qf3 {[%emt 0:00:07]} Qf6 {[%emt 0:00:05]} 37. Rf5 {[%emt 0:00:02]} Qa1+ {[%emt 0:00:01]} 38. Kh2 {[%emt 0:00:02]} f6 {[%emt 0:00:04]} 39. a4 {[%emt 0:00:05]} Re5 {[%emt 0:00:02]} 40. Rf4 {[%emt 0:00:05]} Rc5 {[%emt 0:00:03]} 41. Rg4 {[%emt 0:00:02]} Qe5+ {[%emt 0:00:02]} 42. g3 {[%emt 0:00:04]} Rc1 {[%emt 0:00:03]} 43. Qb7 {[%emt 0:00:05]} Rc7 {[%emt 0:00:03]} 44. Qf3 {[%emt 0:00:01]} Rc1 {[%emt 0:00:02]} 45. Qb7 {[%emt 0:00:02]} Rg8 {[%emt 0:00:02]} 46. Re4 {[%emt 0:00:06]} Qc7 {[%emt 0:00:02]} 47. Qb5 {[%emt 0:00:03]} Rc5 {[%emt 0:00:01]} 48. Qb4 {[%emt 0:00:02]} Re5 {[%emt 0:00:02]} 49. Rf4 {[%emt 0:00:02]} Re7 {[%emt 0:00:02]} 50. Nf5 {[%emt 0:00:02]} Rf7 {[%emt 0:00:02]} 51. Rh4 {[%emt 0:00:03]} Qb7 {[%emt 0:00:03]} 52. Qd2 {[%emt 0:00:02]} Qe4 {[%emt 0:00:02]} 53. Rxh6+ {[%emt 0:00:02]} gxh6 {[%emt 0:00:03]} 54. Qxh6# {[%emt 0:00:01]} 1-0

[Event "Queens Festival Final Team 2022"]
[Site "Tornelo"]
[Date "2022.06.26"]
[Round "8.6"]
[White "Khezrian, Nooralzahra"]
[Black "Jiang, Tianyu"]
[Result "1-0"]
[ECO "B23"]
[WhiteElo "1269"]
[BlackElo "1502"]
[Annotator "NA RC"]
[PlyCount "79"]
[EventDate "2022.06.24"]
[EventType "team-tourn"]
[EventCountry "NET"]
[SourceTitle "playchess.com"]
[Source "ChessBase"]
[SourceQuality "1"]
[WhiteTeam "Iran"]
[BlackTeam "China"]
[WhiteTeamCountry "IRI"]
[BlackTeamCountry "CHN"]
[TimeControl "180+2"]

1. e4 {[%emt 0:00:02]} c5 {[%emt 0:00:06]} 2. Nc3 {[%emt 0:00:02]} Nc6 {[%emt 0:00:02]} 3. f4 {[%emt 0:00:02]} g6 {[%emt 0:00:02]} 4. Nf3 {[%emt 0:00:02]} Bg7 {[%emt 0:00:01]} 5. Bb5 {[%emt 0:00:02]} Nd4 {[%emt 0:00:01]} 6. a4 {[%emt 0:00:02]} e6 {[%emt 0:00:18]} 7. O-O {[%emt 0:00:08]} Ne7 {[%emt 0:00:05]} 8. Nxd4 {[%emt 0:00:02]} cxd4 {[%emt 0:00:15]} 9. Ne2 {[%emt 0:00:01]} a6 {[%emt 0:00:02]} 10. Bd3 {[%emt 0:00:02]} O-O {[%emt 0:00:08]} 11. c3 {[%emt 0:00:02]} dxc3 {[%emt 0:00:11]} 12. dxc3 {[%emt 0:00:01]} Qb6+ {[%emt 0:00:25]} 13. Kh1 {[%emt 0:00:02]} a5 {[%emt 0:00:04]} 14. Rb1 {[%emt 0:00:03]} d6 {[%emt 0:00:17]} 15. Rf3 {[%emt 0:00:05]} Bd7 {[%emt 0:00:03]} 16. Be3 {[%emt 0:00:03]} Qc7 {[%emt 0:00:02]} 17. Nd4 {[%emt 0:00:10]} e5 {[%emt 0:00:15]} 18. Nb5 {[%emt 0:00:04]} Bxb5 {[%emt 0:00:03]} 19. Bxb5 {[%emt 0:00:01]} Rad8 {[%emt 0:00:19]} 20. Qg1 {[%emt 0:00:19]} Nc8 {[%emt 0:00:22]} 21. Rd1 {[%emt 0:00:08]} Qb8 {[%emt 0:00:16]} 22. f5 {[%emt 0:00:04]} f6 {[%emt 0:00:02]} 23. Bc4+ {[%emt 0:00:05]} Kh8 {[%emt 0:00:02]} 24. Be6 {[%emt 0:00:03]} Ne7 {[%emt 0:00:04]} 25. Bb6 {[%emt 0:00:07]} gxf5 {[%emt 0:00:02]} 26. Bxd8 {[%emt 0:00:06]} Rxd8 {[%emt 0:00:02]} 27. Bxf5 {[%emt 0:00:01]} Qc7 {[%emt 0:00:07]} 28. Qf2 {[%emt 0:00:26]} d5 {[%emt 0:00:03]} 29. exd5 {[%emt 0:00:08]} Rxd5 {[%emt 0:00:02]} 30. Rxd5 {[%emt 0:00:03]} Nxd5 {[%emt 0:00:00]} 31. h3 {[%emt 0:00:07]} Nf4 {[%emt 0:00:03]} 32. Qh4 {[%emt 0:00:05]} h6 {[%emt 0:00:03]} 33. g3 {[%emt 0:00:12]} Qc6 {[%emt 0:00:08]} 34. Bg4 {[%emt 0:00:08]} Nd3 {[%emt 0:00:07]} 35. Kh2 {[%emt 0:00:10]} e4 {[%emt 0:00:01]} 36. Re3 {[%emt 0:00:04]} Ne5 {[%emt 0:00:05]} 37. Qh5 {[%emt 0:00:06]} Qd5 {[%emt 0:00:02]} 38. Qe8+ {[%emt 0:00:04]} Kh7 {[%emt 0:00:02]} 39. Bf5+ {[%emt 0:00:01]} Ng6 {[%emt 0:00:04]} 40. Bxg6# {[%emt 0:00:06]} 1-0

[Event "Queens Festival Final Team 2022"]
[Site "Tornelo"]
[Date "2022.06.26"]
[Round "9.1"]
[White "Grigoryan, Meri"]
[Black "Masoumi, Sahar"]
[Result "0-1"]
[ECO "E90"]
[WhiteElo "1993"]
[BlackElo "2004"]
[Annotator "NA RC"]
[PlyCount "68"]
[EventDate "2022.06.24"]
[EventType "team-tourn"]
[EventCountry "NET"]
[SourceTitle "playchess.com"]
[Source "ChessBase"]
[SourceQuality "1"]
[WhiteTeam "England"]
[BlackTeam "Iran"]
[WhiteTeamCountry "ENG"]
[BlackTeamCountry "IRI"]
[TimeControl "180+2"]

1. d4 {[%emt 0:00:02]} Nf6 {[%emt 0:00:06]} 2. c4 {[%emt 0:00:02]} g6 {[%emt 0:00:01]} 3. Nc3 {[%emt 0:00:01]} Bg7 {[%emt 0:00:01]} 4. Nf3 {[%emt 0:00:01]} d6 {[%emt 0:00:01]} 5. h3 {[%emt 0:00:01]} O-O {[%emt 0:00:01]} 6. e4 {[%emt 0:00:01]} e5 {[%emt 0:00:02]} 7. d5 {[%emt 0:00:01]} Na6 {[%emt 0:00:02]} 8. Be3 {[%emt 0:00:02]} Nc5 {[%emt 0:00:02]} 9. Bxc5 {[%emt 0:00:02]} dxc5 {[%emt 0:00:01]} 10. Be2 {[%emt 0:00:03]} Nh5 {[%emt 0:00:05]} 11. g3 {[%emt 0:00:11]} Re8 {[%emt 0:00:03]} 12. Nh2 {[%emt 0:00:05]} Nf6 {[%emt 0:00:05]} 13. Ng4 {[%emt 0:00:02]} a6 {[%emt 0:00:24]} 14. Nxf6+ {[%emt 0:00:02]} Bxf6 {[%emt 0:00:03]} 15. Bg4 {[%emt 0:00:02]} Bg7 {[%emt 0:00:04]} 16. O-O {[%emt 0:00:07]} h5 {[%emt 0:00:10]} 17. Bxc8 {[%emt 0:00:04]} Qxc8 {[%emt 0:00:01]} 18. Kg2 {[%emt 0:00:01]} f5 {[%emt 0:00:08]} 19. exf5 {[%emt 0:00:09]} Qxf5 {[%emt 0:00:01]} 20. g4 {[%emt 0:00:01]} hxg4 {[%emt 0:00:06]} 21. Qxg4 {[%emt 0:00:02]} Rf8 {[%emt 0:00:04]} 22. Rae1 {[%emt 0:00:07]} Rae8 {[%emt 0:00:03]} 23. Ne4 {[%emt 0:00:06]} b6 {[%emt 0:00:20]} 24. Ng5 {[%emt 0:00:12]} Qxg4+ {[%emt 0:00:06]} 25. hxg4 {[%emt 0:00:02]} Rf4 {[%emt 0:00:01]} 26. Kg3 {[%emt 0:00:24]} Rxc4 {[%emt 0:00:02]} 27. Ne6 {[%emt 0:00:09]} Re7 {[%emt 0:00:03]} 28. Re2 {[%emt 0:00:25]} e4 {[%emt 0:00:22]} 29. b3 {[%emt 0:00:05]} Rc3+ {[%emt 0:00:04]} 30. Kf4 {[%emt 0:00:09]} Bh8 {[%emt 0:00:26]} 31. Rxe4 {[%emt 0:00:35]} Rd3 {[%emt 0:00:08]} 32. Rfe1 {[%emt 0:00:32]} Rf7+ {[%emt 0:00:06]} 33. Kg5 {[%emt 0:00:06]} Rxd5+ {[%emt 0:00:02]} 34. Kxg6 {[%emt 0:00:03]} Rf6# {[%emt 0:00:03]} 0-1

[Event "Queens Festival Final Team 2022"]
[Site "Tornelo"]
[Date "2022.06.26"]
[Round "9.1"]
[White "Davari, Sara"]
[Black "Posadas, Rayelynn"]
[Result "1/2-1/2"]
[ECO "B40"]
[WhiteElo "1674"]
[BlackElo "1648"]
[Annotator "NA RC"]
[PlyCount "181"]
[EventDate "2022.06.24"]
[EventType "team-tourn"]
[EventCountry "NET"]
[SourceTitle "playchess.com"]
[Source "ChessBase"]
[SourceQuality "1"]
[WhiteTeam "Iran"]
[BlackTeam "England"]
[WhiteTeamCountry "IRI"]
[BlackTeamCountry "ENG"]
[TimeControl "180+2"]

1. e4 {[%emt 0:00:02]} c5 {[%emt 0:00:04]} 2. Nf3 {[%emt 0:00:02]} e6 {[%emt 0:00:02]} 3. b3 {[%emt 0:00:01]} Nc6 {[%emt 0:00:03]} 4. Bb2 {[%emt 0:00:02]} Qc7 {[%emt 0:00:02]} 5. d4 {[%emt 0:00:04]} d5 {[%emt 0:00:09]} 6. exd5 {[%emt 0:00:02]} exd5 {[%emt 0:00:02]} 7. Bd3 {[%emt 0:00:03]} Be6 {[%emt 0:00:01]} 8. Nbd2 {[%emt 0:00:04]} Nf6 {[%emt 0:00:02]} 9. h3 {[%emt 0:00:04]} Bd6 {[%emt 0:00:02]} 10. dxc5 {[%emt 0:00:03]} Bxc5 {[%emt 0:00:02]} 11. O-O {[%emt 0:00:02]} Be7 {[%emt 0:00:02]} 12. Rc1 {[%emt 0:00:06]} O-O {[%emt 0:00:02]} 13. Re1 {[%emt 0:00:05]} Rac8 {[%emt 0:00:02]} 14. Nf1 {[%emt 0:00:02]} Rfd8 {[%emt 0:00:03]} 15. Ne3 {[%emt 0:00:04]} Qf4 {[%emt 0:00:19]} 16. Qd2 {[%emt 0:00:30]} Bxh3 {[%emt 0:00:22]} 17. gxh3 {[%emt 0:00:17]} Qxf3 {[%emt 0:00:02]} 18. Bf5 {[%emt 0:00:03]} Ne4 {[%emt 0:00:28]} 19. Qe2 {[%emt 0:00:12]} Qxe2 {[%emt 0:00:10]} 20. Rxe2 {[%emt 0:00:01]} Rc7 {[%emt 0:00:04]} 21. Nxd5 {[%emt 0:00:12]} Rxd5 {[%emt 0:00:12]} 22. Bxe4 {[%emt 0:00:02]} Rd8 {[%emt 0:00:10]} 23. Rce1 {[%emt 0:00:11]} Bc5 {[%emt 0:00:07]} 24. Bxc6 {[%emt 0:00:06]} bxc6 {[%emt 0:00:03]} 25. Re8+ {[%emt 0:00:02]} Rxe8 {[%emt 0:00:01]} 26. Rxe8+ {[%emt 0:00:02]} Bf8 {[%emt 0:00:01]} 27. Ba3 {[%emt 0:00:12]} c5 {[%emt 0:00:02]} 28. b4 {[%emt 0:00:13]} f6 {[%emt 0:00:03]} 29. bxc5 {[%emt 0:00:11]} Kf7 {[%emt 0:00:01]} 30. Ra8 {[%emt 0:00:06]} Be7 {[%emt 0:00:13]} 31. Bb4 {[%emt 0:00:12]} Ke6 {[%emt 0:00:04]} 32. c4 {[%emt 0:00:08]} g5 {[%emt 0:00:13]} 33. a3 {[%emt 0:00:07]} h5 {[%emt 0:00:02]} 34. Kg2 {[%emt 0:00:12]} Bxc5 {[%emt 0:00:03]} 35. Bxc5 {[%emt 0:00:01]} Rxc5 {[%emt 0:00:00]} 36. Rxa7 {[%emt 0:00:02]} Rxc4 {[%emt 0:00:01]} 37. Ra6+ {[%emt 0:00:01]} Kf5 {[%emt 0:00:01]} 38. Ra5+ {[%emt 0:00:02]} Kf4 {[%emt 0:00:05]} 39. Rb5 {[%emt 0:00:04]} Rc3 {[%emt 0:00:16]} 40. a4 {[%emt 0:00:02]} Ra3 {[%emt 0:00:02]} 41. Rb4+ {[%emt 0:00:02]} Kf5 {[%emt 0:00:02]} 42. Rb5+ {[%emt 0:00:02]} Kg6 {[%emt 0:00:02]} 43. a5 {[%emt 0:00:01]} g4 {[%emt 0:00:01]} 44. hxg4 {[%emt 0:00:02]} hxg4 {[%emt 0:00:00]} 45. Rc5 {[%emt 0:00:05]} f5 {[%emt 0:00:02]} 46. Rc6+ {[%emt 0:00:02]} Kg5 {[%emt 0:00:00]} 47. a6 {[%emt 0:00:01]} Kf4 {[%emt 0:00:02]} 48. Rc4+ {[%emt 0:00:02]} Kg5 {[%emt 0:00:01]} 49. Rc6 {[%emt 0:00:02]} f4 {[%emt 0:00:13]} 50. Rb6 {[%emt 0:00:04]} Ra5 {[%emt 0:00:10]} 51. Rc6 {[%emt 0:00:04]} Kf5 {[%emt 0:00:02]} 52. Rb6 {[%emt 0:00:04]} Kg5 {[%emt 0:00:12]} 53. Rc6 {[%emt 0:00:01]} f3+ {[%emt 0:00:06]} 54. Kg3 {[%emt 0:00:04]} Ra1 {[%emt 0:00:04]} 55. Rc5+ {[%emt 0:00:02]} Kg6 {[%emt 0:00:02]} 56. Kxg4 {[%emt 0:00:03]} Rxa6 {[%emt 0:00:01]} 57. Kxf3 {[%emt 0:00:01]} Rf6+ {[%emt 0:00:01]} 58. Kg3 {[%emt 0:00:01]} Re6 {[%emt 0:00:03]} 59. f4 {[%emt 0:00:03]} Kf6 {[%emt 0:00:01]} 60. Kg4 {[%emt 0:00:01]} Re4 {[%emt 0:00:02]} 61. Rc6+ {[%emt 0:00:03]} Kf7 {[%emt 0:00:04]} 62. Kg5 {[%emt 0:00:01]} Rb4 {[%emt 0:00:03]} 63. f5 {[%emt 0:00:03]} Rb1 {[%emt 0:00:03]} 64. Rc7+ {[%emt 0:00:02]} Kf8 {[%emt 0:00:01]} 65. Ra7 {[%emt 0:00:05]} Rg1+ {[%emt 0:00:01]} 66. Kf6 {[%emt 0:00:02]} Kg8 {[%emt 0:00:03]} 67. Ra8+ {[%emt 0:00:04]} Kh7 {[%emt 0:00:01]} 68. Kf7 {[%emt 0:00:02]} Rg7+ {[%emt 0:00:06]} 69. Kf6 {[%emt 0:00:01]} Rb7 {[%emt 0:00:01]} 70. Ra6 {[%emt 0:00:05]} Rc7 {[%emt 0:00:02]} 71. Ke6 {[%emt 0:00:02]} Rb7 {[%emt 0:00:02]} 72. f6 {[%emt 0:00:01]} Kg6 {[%emt 0:00:04]} 73. Rc6 {[%emt 0:00:03]} Rf7 {[%emt 0:00:02]} 74. Ke5 {[%emt 0:00:02]} Rd7 {[%emt 0:00:03]} 75. Re6 {[%emt 0:00:02]} Kf7 {[%emt 0:00:02]} 76. Rb6 {[%emt 0:00:03]} Rc7 {[%emt 0:00:01]} 77. Rb5 {[%emt 0:00:03]} Rd7 {[%emt 0:00:03]} 78. Kf5 {[%emt 0:00:02]} Rc7 {[%emt 0:00:01]} 79. Kg5 {[%emt 0:00:02]} Rd7 {[%emt 0:00:02]} 80. Ra5 {[%emt 0:00:02]} Rc7 {[%emt 0:00:02]} 81. Kf5 {[%emt 0:00:02]} Rd7 {[%emt 0:00:01]} 82. Ke5 {[%emt 0:00:01]} Rc7 {[%emt 0:00:01]} 83. Ra4 {[%emt 0:00:03]} Rc5+ {[%emt 0:00:02]} 84. Kd6 {[%emt 0:00:01]} Rc1 {[%emt 0:00:03]} 85. Rf4 {[%emt 0:00:04]} Rd1+ {[%emt 0:00:02]} 86. Ke5 {[%emt 0:00:02]} Re1+ {[%emt 0:00:02]} 87. Kf5 {[%emt 0:00:01]} Re6 {[%emt 0:00:02]} 88. Kg5 {[%emt 0:00:02]} Ra6 {[%emt 0:00:01]} 89. Rb4 {[%emt 0:00:05]} Ra5+ {[%emt 0:00:02]} 90. Kh6 {[%emt 0:00:02]} Kxf6 {[%emt 0:00:03]} 91. Rb6+ {[%emt 0:00:03]} 1/2-1/2